[Event "44th Chess Olympiad Women 2022"]
[Site "Chennai"]
[Date "2022.07.31"]
[Round "3.42"]
[White "Khantree, Napat"]
[Black "Finnbogadottir, Tinna Kristin"]
[Result "1-0"]
[WhiteElo "1362"]
[BlackElo "1828"]
[Annotator "NA RC"]
[PlyCount "129"]
[EventDate "2022.??.??"]
[TimeControl "60"]

1. d4 {[%emt 0:00:02]} d5 {[%emt 0:00:03]} 2. c4 {[%emt 0:00:07]} c6 {[%emt 0:
00:00]} 3. cxd5 {[%emt 0:00:07]} cxd5 {[%emt 0:00:05]} 4. Nc3 {[%emt 0:00:06]}
Nf6 {[%emt 0:00:05]} 5. Bf4 {[%emt 0:00:06]} Nc6 {[%emt 0:00:58]} 6. e3 {
[%emt 0:00:20]} Bf5 {[%emt 0:04:28]} 7. Qb3 {[%emt 0:03:42]} Qd7 {[%emt 0:00:
00]} 8. Nf3 {[%emt 0:00:39]} a6 {[%emt 0:02:34]} 9. Na4 {[%emt 0:03:05]} e6 {
[%emt 0:09:01]} 10. Nb6 {[%emt 0:02:47]} Bb4+ {[%emt 0:00:09]} 11. Ke2 {
[%emt 0:00:59]} Qd8 {[%emt 0:00:35]} 12. Nxa8 {[%emt 0:00:17]} Qxa8 {[%emt 0:
00:00]} 13. Ne5 {[%emt 0:00:36]} a5 {[%emt 0:07:54]} 14. Nxc6 {[%emt 0:02:09]}
bxc6 {[%emt 0:00:39]} 15. a3 {[%emt 0:00:23]} Be7 {[%emt 0:00:22]} 16. Qb8+ {
[%emt 0:00:07]} Qxb8 {[%emt 0:00:06]} 17. Bxb8 {[%emt 0:00:05]} Kd7 {[%emt 0:
00:00]} 18. Bg3 {[%emt 0:00:11]} Ne4 {[%emt 0:00:47]} 19. Kd1 {[%emt 0:02:52]}
h5 {[%emt 0:00:43]} 20. f3 {[%emt 0:00:43]} Nxg3 {[%emt 0:01:03]} 21. hxg3 {
[%emt 0:00:06]} Rb8 {[%emt 0:02:18]} 22. Ra2 {[%emt 0:02:20]} Bg6 {[%emt 0:00:
00]} 23. Kd2 {[%emt 0:01:01]} Rb3 {[%emt 0:01:19]} 24. Be2 {[%emt 0:01:14]} c5
{[%emt 0:00:07]} 25. Bd1 {[%emt 0:00:45]} Rd3+ {[%emt 0:01:35]} 26. Ke2 {
[%emt 0:00:16]} cxd4 {[%emt 0:00:11]} 27. Ba4+ {[%emt 0:00:59]} Kd8 {[%emt 0:
00:00]} 28. exd4 {[%emt 0:00:54]} Rxd4 {[%emt 0:00:10]} 29. Bb5 {[%emt 0:00:46]
} Bd6 {[%emt 0:02:25]} 30. Rh4 {[%emt 0:09:33]} Rxh4 {[%emt 0:01:05]} 31. gxh4
{[%emt 0:00:04]} Bg3 {[%emt 0:00:05]} 32. b4 {[%emt 0:00:05]} axb4 {[%emt 0:00:
00]} 33. axb4 {[%emt 0:00:05]} Bxh4 {[%emt 0:00:20]} 34. Bd3 {[%emt 0:00:04]}
Bxd3+ {[%emt 0:05:37]} 35. Kxd3 {[%emt 0:00:06]} Bg3 {[%emt 0:00:33]} 36. Ra7 {
[%emt 0:00:28]} Bc7 {[%emt 0:00:27]} 37. Ra8+ {[%emt 0:01:06]} Kd7 {[%emt 0:00:
00]} 38. Ra6 {[%emt 0:02:04]} Kc8 {[%emt 0:01:10]} 39. Kd4 {[%emt 0:02:59]} Kb7
{[%emt 0:00:10]} 40. b5 {[%emt 0:00:07]} g5 {[%emt 0:01:01]} 41. Kc5 {[%emt 0:
00:00]} g4 {[%emt 0:31:25]} 42. fxg4 {[%emt 0:00:08]} hxg4 {[%emt 0:00:06]} 43.
Rc6 {[%emt 0:00:46]} g3 {[%emt 0:02:53]} 44. Kd4 {[%emt 0:07:37]} e5+ {[%emt 0:
00:00]} 45. Kxd5 {[%emt 0:00:15]} Bb8 {[%emt 0:01:34]} 46. Rf6 {[%emt 0:04:43]}
Ka7 {[%emt 0:00:26]} 47. Rxf7+ {[%emt 0:00:13]} Kb6 {[%emt 0:00:11]} 48. Ke4 {
[%emt 0:00:15]} Kc5 {[%emt 0:01:02]} 49. Rg7 {[%emt 0:00:24]} Bd6 {[%emt 0:00:
00]} 50. Rd7 {[%emt 0:01:30]} Bb8 {[%emt 0:00:19]} 51. Kf3 {[%emt 0:00:14]} e4+
{[%emt 0:03:34]} 52. Kxe4 {[%emt 0:00:08]} Kb6 {[%emt 0:00:11]} 53. Kd5 {
[%emt 0:00:25]} Bf4 {[%emt 0:00:18]} 54. Kc4 {[%emt 0:00:33]} Be3 {[%emt 0:00:
00]} 55. Rd3 {[%emt 0:00:12]} Bf2 {[%emt 0:00:08]} 56. Ra3 {[%emt 0:00:31]} Kc7
{[%emt 0:01:50]} 57. Ra6 {[%emt 0:00:16]} Kb7 {[%emt 0:00:25]} 58. Re6 {
[%emt 0:00:06]} Kc7 {[%emt 0:01:20]} 59. Kb4 {[%emt 0:02:23]} Kb7 {[%emt 0:00:
00]} 60. Ka5 {[%emt 0:01:29]} Bd4 {[%emt 0:05:19]} 61. b6 {[%emt 0:00:19]} Bf2
{[%emt 0:02:54]} 62. Kb5 {[%emt 0:00:08]} Bd4 {[%emt 0:00:43]} 63. Re7+ {
[%emt 0:00:05]} Kc8 {[%emt 0:00:39]} 64. Kc6 {[%emt 0:00:06]} Kd8 {[%emt 0:00:
00]} 65. Rd7+ {[%emt 0:00:35]} 1-0

[Event "44th Chess Olympiad Women 2022"]
[Site "Chennai"]
[Date "2022.07.31"]
[Round "3.42"]
[White "Thorsteinsdottir, Hallgerdur"]
[Black "Prommuang, Araya"]
[Result "1-0"]
[WhiteElo "1934"]
[BlackElo "1651"]
[Annotator "NA"]
[PlyCount "75"]
[EventDate "2022.??.??"]
[TimeControl "60"]

1. e4 {[%emt 0:00:04]} c5 {[%emt 0:00:23]} 2. Nf3 {[%emt 0:00:09]} e6 {[%emt 0:
00:00]} 3. g3 {[%emt 0:00:15]} d5 {[%emt 0:00:34]} 4. exd5 {[%emt 0:00:17]}
exd5 {[%emt 0:00:29]} 5. d4 {[%emt 0:00:17]} Nf6 {[%emt 0:00:31]} 6. Bg2 {
[%emt 0:00:33]} Be7 {[%emt 0:00:49]} 7. dxc5 {[%emt 0:01:49]} Bxc5 {[%emt 0:00:
00]} 8. O-O {[%emt 0:00:15]} O-O {[%emt 0:00:13]} 9. Nc3 {[%emt 0:00:38]} Nc6 {
[%emt 0:01:37]} 10. a3 {[%emt 0:02:16]} a6 {[%emt 0:04:31]} 11. b4 {[%emt 0:00:
00]} Ba7 {[%emt 0:01:10]} 12. Bg5 {[%emt 0:02:29]} Bg4 {[%emt 0:09:42]} 13.
Bxf6 {[%emt 0:16:26]} Qxf6 {[%emt 0:05:05]} 14. Nxd5 {[%emt 0:00:59]} Qf5 {
[%emt 0:05:50]} 15. Ne3 {[%emt 0:06:26]} Bxe3 {[%emt 0:02:25]} 16. fxe3 {
[%emt 0:00:20]} Qe6 {[%emt 0:07:07]} 17. Qc1 {[%emt 0:06:13]} h6 {[%emt 0:00:
00]} 18. Nd4 {[%emt 0:04:27]} Nxd4 {[%emt 0:01:56]} 19. exd4 {[%emt 0:00:05]}
Qd7 {[%emt 0:01:25]} 20. Qd2 {[%emt 0:06:21]} Rac8 {[%emt 0:08:07]} 21. Rf4 {
[%emt 0:03:04]} Rfe8 {[%emt 0:11:22]} 22. Re4 {[%emt 0:08:34]} Rxe4 {[%emt 0:
00:00]} 23. Bxe4 {[%emt 0:00:07]} f5 {[%emt 0:03:59]} 24. Bg2 {[%emt 0:01:42]}
Re8 {[%emt 0:01:34]} 25. c4 {[%emt 0:02:28]} Rd8 {[%emt 0:04:40]} 26. d5 {
[%emt 0:00:59]} b6 {[%emt 0:01:07]} 27. c5 {[%emt 0:01:16]} bxc5 {[%emt 0:00:
00]} 28. bxc5 {[%emt 0:00:07]} Bh5 {[%emt 0:02:42]} 29. d6 {[%emt 0:03:14]} Qa7
{[%emt 0:01:24]} 30. Qf2 {[%emt 0:01:40]} Qd7 {[%emt 0:01:43]} 31. Re1 {
[%emt 0:03:30]} Be8 {[%emt 0:00:49]} 32. Qd4 {[%emt 0:04:51]} Bf7 {[%emt 0:00:
00]} 33. c6 {[%emt 0:01:23]} Qc8 {[%emt 0:00:13]} 34. Re7 {[%emt 0:03:02]} Rf8
{[%emt 0:00:39]} 35. c7 {[%emt 0:02:33]} Kh7 {[%emt 0:00:34]} 36. Bd5 {[%emt 0:
00:00]} Kg6 {[%emt 0:00:16]} 37. Bxf7+ {[%emt 0:01:35]} Rxf7 {[%emt 0:01:09]}
38. Rxf7 {[%emt 0:00:15]} 1-0

[Event "44th Chess Olympiad Women 2022"]
[Site "Chennai"]
[Date "2022.07.31"]
[Round "3.43"]
[White "Creebsburg, Shefali"]
[Black "Hamza, Amira"]
[Result "0-1"]
[WhiteElo "1151"]
[BlackElo "1848"]
[Annotator "NA"]
[PlyCount "70"]
[EventDate "2022.??.??"]
[TimeControl "60"]

1. e4 {[%emt 0:00:07]} d6 {[%emt 0:00:33]} 2. Nc3 {[%emt 0:00:52]} g6 {[%emt 0:
00:00]} 3. d4 {[%emt 0:02:23]} Bg7 {[%emt 0:00:26]} 4. Nf3 {[%emt 0:00:36]} Nd7
{[%emt 0:02:21]} 5. Bc4 {[%emt 0:02:43]} e6 {[%emt 0:03:23]} 6. Bg5 {[%emt 0:
00:00]} Ne7 {[%emt 0:00:35]} 7. O-O {[%emt 0:01:22]} h6 {[%emt 0:02:59]} 8. Be3
{[%emt 0:02:41]} O-O {[%emt 0:07:54]} 9. Qd2 {[%emt 0:03:57]} Kh7 {[%emt 0:00:
00]} 10. h3 {[%emt 0:07:41]} a6 {[%emt 0:11:48]} 11. Nh2 {[%emt 0:06:32]} e5 {
[%emt 0:18:39]} 12. d5 {[%emt 0:10:26]} f5 {[%emt 0:07:45]} 13. f4 {[%emt 0:00:
00]} fxe4 {[%emt 0:08:40]} 14. Nxe4 {[%emt 0:04:44]} Nf5 {[%emt 0:00:34]} 15.
c3 {[%emt 0:06:34]} Nxe3 {[%emt 0:05:51]} 16. Qxe3 {[%emt 0:01:14]} exf4 {
[%emt 0:02:54]} 17. Rxf4 {[%emt 0:00:53]} Ne5 {[%emt 0:08:29]} 18. Bb3 {
[%emt 0:07:53]} Bf5 {[%emt 0:00:00]} 19. Raf1 {[%emt 0:06:21]} Qe7 {[%emt 0:00:
00]} 20. Ng4 {[%emt 0:06:31]} Bxg4 {[%emt 0:01:26]} 21. hxg4 {[%emt 0:00:30]}
Rxf4 {[%emt 0:03:55]} 22. Rxf4 {[%emt 0:01:46]} Rf8 {[%emt 0:02:54]} 23. Rxf8 {
[%emt 0:03:34]} Qxf8 {[%emt 0:00:23]} 24. Qh3 {[%emt 0:01:30]} Qf4 {[%emt 0:00:
00]} 25. Nf2 {[%emt 0:00:59]} Qd2 {[%emt 0:02:40]} 26. Qh4 {[%emt 0:05:03]}
Qe1+ {[%emt 0:00:28]} 27. Kh2 {[%emt 0:00:10]} Nd3 {[%emt 0:02:24]} 28. Bc2 {
[%emt 0:03:28]} Be5+ {[%emt 0:00:21]} 29. g3 {[%emt 0:01:37]} Qxf2+ {[%emt 0:
00:00]} 30. Kh3 {[%emt 0:00:25]} Qxc2 {[%emt 0:00:37]} 31. Qe7+ {[%emt 0:00:19]
} Bg7 {[%emt 0:00:07]} 32. g5 {[%emt 0:00:43]} Nf2+ {[%emt 0:00:17]} 33. Kh4 {
[%emt 0:00:39]} hxg5+ {[%emt 0:00:20]} 34. Kxg5 {[%emt 0:00:34]} Qf5+ {[%emt 0:
00:00]} 35. Kh4 {[%emt 0:00:12]} Qh5# {[%emt 0:00:07]} 0-1

[Event "44th Chess Olympiad Women 2022"]
[Site "Chennai"]
[Date "2022.07.31"]
[Round "3.43"]
[White "Kaslan, Victoria"]
[Black "Abdi, Zineb Dina"]
[Result "1/2-1/2"]
[WhiteElo "1477"]
[BlackElo "1899"]
[Annotator "NA RC"]
[PlyCount "107"]
[EventDate "2022.??.??"]
[TimeControl "60"]

1. e4 {[%emt 0:00:09]} c5 {[%emt 0:00:36]} 2. Nf3 {[%emt 0:00:10]} e6 {[%emt 0:
00:00]} 3. d4 {[%emt 0:00:50]} cxd4 {[%emt 0:00:17]} 4. Nxd4 {[%emt 0:00:59]}
a6 {[%emt 0:00:24]} 5. Be3 {[%emt 0:01:54]} Qc7 {[%emt 0:00:36]} 6. Nd2 {
[%emt 0:03:25]} Nf6 {[%emt 0:02:02]} 7. f3 {[%emt 0:05:29]} d5 {[%emt 0:01:38]}
8. exd5 {[%emt 0:09:34]} Nxd5 {[%emt 0:00:30]} 9. Bf2 {[%emt 0:00:51]} Nd7 {
[%emt 0:16:51]} 10. c3 {[%emt 0:06:41]} N7f6 {[%emt 0:05:47]} 11. N2b3 {
[%emt 0:06:54]} Bd6 {[%emt 0:07:59]} 12. g3 {[%emt 0:12:18]} O-O {[%emt 0:00:
00]} 13. Be2 {[%emt 0:08:07]} Rd8 {[%emt 0:04:09]} 14. O-O {[%emt 0:03:34]} e5
{[%emt 0:06:02]} 15. Nc2 {[%emt 0:01:18]} Nb6 {[%emt 0:01:35]} 16. Qc1 {
[%emt 0:03:02]} Be6 {[%emt 0:01:26]} 17. Qe3 {[%emt 0:01:58]} Nc4 {[%emt 0:00:
00]} 18. Qc1 {[%emt 0:05:21]} Rac8 {[%emt 0:05:08]} 19. Ne3 {[%emt 0:02:20]}
Na5 {[%emt 0:03:43]} 20. Nd2 {[%emt 0:04:39]} Rd7 {[%emt 0:04:21]} 21. Rd1 {
[%emt 0:01:07]} b5 {[%emt 0:01:36]} 22. Kg2 {[%emt 0:03:20]} Qb7 {[%emt 0:00:
00]} 23. Qb1 {[%emt 0:02:46]} Rcd8 {[%emt 0:01:08]} 24. b4 {[%emt 0:05:57]} Nc6
{[%emt 0:00:19]} 25. Ne4 {[%emt 0:00:49]} Be7 {[%emt 0:05:12]} 26. Qc2 {
[%emt 0:03:13]} Rxd1 {[%emt 0:02:29]} 27. Rxd1 {[%emt 0:00:10]} Rxd1 {[%emt 0:
00:00]} 28. Bxd1 {[%emt 0:01:46]} Nxe4 {[%emt 0:01:42]} 29. Qxe4 {[%emt 0:00:
00]} Bxa2 {[%emt 0:03:25]} 30. Bc2 {[%emt 0:01:04]} g6 {[%emt 0:00:43]} 31. Nd5
{[%emt 0:01:43]} Bxd5 {[%emt 0:02:28]} 32. Qxd5 {[%emt 0:00:02]} Qc7 {[%emt 0:
00:00]} 33. Bb3 {[%emt 0:01:18]} Nd8 {[%emt 0:01:59]} 34. Be1 {[%emt 0:01:23]}
Qd6 {[%emt 0:04:27]} 35. Bf2 {[%emt 0:00:54]} Qf6 {[%emt 0:02:32]} 36. Be3 {
[%emt 0:00:48]} Qf5 {[%emt 0:04:13]} 37. Qd2 {[%emt 0:01:10]} Qc8 {[%emt 0:00:
00]} 38. Bb6 {[%emt 0:00:30]} Ne6 {[%emt 0:00:23]} 39. Bf2 {[%emt 0:00:08]} Kg7
{[%emt 0:00:39]} 40. Be1 {[%emt 0:00:10]} Kg8 {[%emt 0:00:32]} 41. Qd5 {
[%emt 0:30:17]} Bf6 {[%emt 0:06:15]} 42. c4 {[%emt 0:00:00]} Nd4 {[%emt 0:00:
00]} 43. Ba2 {[%emt 0:00:00]} Qc6 {[%emt 0:06:03]} 44. c5 {[%emt 0:00:00]} Qe8
{[%emt 0:02:51]} 45. Qd6 {[%emt 0:00:00]} Kg7 {[%emt 0:03:51]} 46. Bd5 {
[%emt 0:00:00]} Nf5 {[%emt 0:01:41]} 47. Qc6 {[%emt 0:00:00]} Qd8 {[%emt 0:00:
00]} 48. Be4 {[%emt 0:00:00]} Ne3+ {[%emt 0:00:55]} 49. Kf2 {[%emt 0:00:00]}
Qd4 {[%emt 0:00:30]} 50. Ke2 {[%emt 0:03:26]} Qd1+ {[%emt 0:03:37]} 51. Kf2 {
[%emt 0:02:39]} Qd4 {[%emt 0:03:16]} 52. Ke2 {[%emt 0:00:10]} Qd1+ {[%emt 0:00:
00]} 53. Kf2 {[%emt 0:00:16]} Qd4 {[%emt 0:00:02]} 54. Ke2 {[%emt 0:00:16]}
1/2-1/2

[Event "44th Chess Olympiad Women 2022"]
[Site "Chennai"]
[Date "2022.07.31"]
[Round "3.43"]
[White "Nassr, Lina"]
[Black "Kaslan, Catherine"]
[Result "1-0"]
[WhiteElo "2011"]
[BlackElo "1872"]
[Annotator "NA RC"]
[PlyCount "89"]
[EventDate "2022.??.??"]
[TimeControl "60"]

1. c4 {[%emt 0:00:09]} e5 {[%emt 0:00:11]} 2. Nc3 {[%emt 0:00:18]} Nf6 {
[%emt 0:00:53]} 3. e3 {[%emt 0:00:18]} d5 {[%emt 0:01:26]} 4. cxd5 {[%emt 0:00:
00]} Nxd5 {[%emt 0:01:02]} 5. Nf3 {[%emt 0:00:40]} Nc6 {[%emt 0:04:47]} 6. Bb5
{[%emt 0:01:09]} Nxc3 {[%emt 0:04:14]} 7. bxc3 {[%emt 0:00:07]} Bg4 {[%emt 0:
00:00]} 8. h3 {[%emt 0:08:21]} Bd7 {[%emt 0:09:09]} 9. d4 {[%emt 0:03:23]} exd4
{[%emt 0:02:58]} 10. cxd4 {[%emt 0:05:25]} Bb4+ {[%emt 0:07:08]} 11. Bd2 {
[%emt 0:00:35]} Qe7 {[%emt 0:02:22]} 12. O-O {[%emt 0:03:46]} O-O {[%emt 0:00:
00]} 13. Bxb4 {[%emt 0:07:02]} Qxb4 {[%emt 0:05:13]} 14. Rb1 {[%emt 0:07:40]}
Qd6 {[%emt 0:06:11]} 15. Qc2 {[%emt 0:14:10]} Rab8 {[%emt 0:06:17]} 16. Rfd1 {
[%emt 0:04:41]} a6 {[%emt 0:02:10]} 17. Bd3 {[%emt 0:07:11]} g6 {[%emt 0:03:43]
} 18. Qc3 {[%emt 0:00:44]} Rfc8 {[%emt 0:08:15]} 19. e4 {[%emt 0:06:06]} b5 {
[%emt 0:05:47]} 20. Bc2 {[%emt 0:06:06]} b4 {[%emt 0:03:21]} 21. Qe3 {[%emt 0:
00:00]} Na5 {[%emt 0:01:11]} 22. e5 {[%emt 0:01:18]} Qe7 {[%emt 0:01:37]} 23.
Qh6 {[%emt 0:10:07]} Qf8 {[%emt 0:01:08]} 24. Qh4 {[%emt 0:01:37]} c6 {[%emt 0:
00:00]} 25. Ng5 {[%emt 0:01:54]} h6 {[%emt 0:02:22]} 26. Ne4 {[%emt 0:01:08]}
Be6 {[%emt 0:00:12]} 27. Bb3 {[%emt 0:01:59]} Nxb3 {[%emt 0:03:31]} 28. axb3 {
[%emt 0:00:05]} Bf5 {[%emt 0:00:53]} 29. Nf6+ {[%emt 0:00:21]} Kg7 {[%emt 0:00:
00]} 30. Rb2 {[%emt 0:01:45]} Rd8 {[%emt 0:02:00]} 31. Qf4 {[%emt 0:01:03]} Qe7
{[%emt 0:00:36]} 32. Rc1 {[%emt 0:01:10]} Rbc8 {[%emt 0:00:42]} 33. Rc5 {
[%emt 0:00:29]} Qe6 {[%emt 0:00:38]} 34. Qd2 {[%emt 0:01:06]} Rb8 {[%emt 0:00:
00]} 35. g4 {[%emt 0:00:22]} Qe7 {[%emt 0:00:39]} 36. gxf5 {[%emt 0:00:13]}
gxf5 {[%emt 0:00:23]} 37. Qf4 {[%emt 0:00:58]} Qe6 {[%emt 0:00:33]} 38. f3 {
[%emt 0:00:12]} Kf8 {[%emt 0:00:23]} 39. d5 {[%emt 0:02:08]} Rxd5 {[%emt 0:00:
00]} 40. Qxh6+ {[%emt 0:00:13]} Ke7 {[%emt 0:00:10]} 41. Nxd5+ {[%emt 0:30:05]}
cxd5 {[%emt 0:30:16]} 42. Qxe6+ {[%emt 0:00:25]} Kxe6 {[%emt 0:00:14]} 43. f4 {
[%emt 0:00:13]} d4 {[%emt 0:00:56]} 44. Rd2 {[%emt 0:00:05]} Rg8+ {[%emt 0:00:
00]} 45. Kh2 {[%emt 0:00:00]} 1-0

[Event "44th Chess Olympiad Women 2022"]
[Site "Chennai"]
[Date "2022.07.31"]
[Round "3.43"]
[White "Nassr, Rania"]
[Black "Kaslan, Alexandra"]
[Result "1-0"]
[WhiteElo "1737"]
[BlackElo "1435"]
[Annotator "NA"]
[PlyCount "87"]
[EventDate "2022.??.??"]
[TimeControl "60"]

1. d4 {[%emt 0:00:14]} e6 {[%emt 0:00:32]} 2. Nf3 {[%emt 0:00:15]} Nf6 {
[%emt 0:00:39]} 3. e3 {[%emt 0:00:22]} d5 {[%emt 0:00:57]} 4. Bd3 {[%emt 0:00:
00]} c5 {[%emt 0:00:59]} 5. b3 {[%emt 0:00:42]} Nbd7 {[%emt 0:00:56]} 6. O-O {
[%emt 0:01:20]} Bd6 {[%emt 0:00:51]} 7. Bb2 {[%emt 0:02:08]} O-O {[%emt 0:00:
00]} 8. Nbd2 {[%emt 0:01:56]} Re8 {[%emt 0:03:54]} 9. Ne5 {[%emt 0:01:19]} Qc7
{[%emt 0:05:22]} 10. f4 {[%emt 0:04:39]} cxd4 {[%emt 0:05:09]} 11. exd4 {
[%emt 0:00:52]} Nf8 {[%emt 0:05:30]} 12. c4 {[%emt 0:05:02]} b6 {[%emt 0:08:45]
} 13. Rc1 {[%emt 0:11:54]} Qb7 {[%emt 0:03:46]} 14. Qe2 {[%emt 0:03:54]} Bd7 {
[%emt 0:06:29]} 15. c5 {[%emt 0:07:40]} Bxe5 {[%emt 0:03:42]} 16. fxe5 {
[%emt 0:01:24]} Ne4 {[%emt 0:00:39]} 17. Bxe4 {[%emt 0:06:52]} dxe4 {[%emt 0:
00:00]} 18. Nxe4 {[%emt 0:00:37]} Bb5 {[%emt 0:14:24]} 19. Qxb5 {[%emt 0:07:26]
} Qxe4 {[%emt 0:01:14]} 20. cxb6 {[%emt 0:04:29]} axb6 {[%emt 0:04:49]} 21. a4
{[%emt 0:15:07]} Qe3+ {[%emt 0:06:37]} 22. Kh1 {[%emt 0:01:41]} Ng6 {[%emt 0:
00:00]} 23. Rce1 {[%emt 0:04:27]} Qg5 {[%emt 0:03:10]} 24. Qe2 {[%emt 0:02:00]}
Rac8 {[%emt 0:04:36]} 25. Qf3 {[%emt 0:02:41]} Rc7 {[%emt 0:03:10]} 26. Rc1 {
[%emt 0:02:03]} Qe7 {[%emt 0:01:31]} 27. Rxc7 {[%emt 0:01:13]} Qxc7 {[%emt 0:
00:00]} 28. Rc1 {[%emt 0:00:17]} Qd7 {[%emt 0:01:36]} 29. Qc6 {[%emt 0:01:23]}
Qxc6 {[%emt 0:00:44]} 30. Rxc6 {[%emt 0:00:03]} Rb8 {[%emt 0:00:38]} 31. Ba3 {
[%emt 0:01:06]} h6 {[%emt 0:00:43]} 32. Bd6 {[%emt 0:00:16]} Rb7 {[%emt 0:00:
00]} 33. Rc8+ {[%emt 0:01:17]} Kh7 {[%emt 0:00:18]} 34. Rc7 {[%emt 0:00:33]}
Rb8 {[%emt 0:02:14]} 35. Rxf7 {[%emt 0:00:47]} Rc8 {[%emt 0:00:15]} 36. Rc7 {
[%emt 0:00:08]} Ra8 {[%emt 0:00:54]} 37. g3 {[%emt 0:02:00]} b5 {[%emt 0:00:48]
} 38. axb5 {[%emt 0:00:13]} Ra1+ {[%emt 0:00:14]} 39. Kg2 {[%emt 0:00:16]} Ra2+
{[%emt 0:00:11]} 40. Kh3 {[%emt 0:01:17]} Rb2 {[%emt 0:00:47]} 41. b4 {[%emt 0:
00:00]} Ra2 {[%emt 0:30:45]} 42. b6 {[%emt 0:00:19]} Ra6 {[%emt 0:00:17]} 43.
b7 {[%emt 0:00:17]} Rb6 {[%emt 0:00:16]} 44. Rd7 {[%emt 0:00:25]} 1-0

[Event "44th Chess Olympiad Women 2022"]
[Site "Chennai"]
[Date "2022.07.31"]
[Round "3.44"]
[White "Cadeau, Merisena"]
[Black "Rodriguez Arrieta, Maria Elena"]
[Result "0-1"]
[WhiteElo "1439"]
[BlackElo "1849"]
[Annotator "NA RC"]
[PlyCount "76"]
[EventDate "2022.??.??"]
[TimeControl "60"]

1. e4 {[%emt 0:00:02]} e5 {[%emt 0:00:48]} 2. Nf3 {[%emt 0:00:11]} Nc6 {
[%emt 0:00:05]} 3. Bc4 {[%emt 0:00:07]} Bc5 {[%emt 0:00:06]} 4. Nc3 {[%emt 0:
00:00]} Nf6 {[%emt 0:00:07]} 5. d3 {[%emt 0:00:12]} d6 {[%emt 0:00:13]} 6. Bg5
{[%emt 0:00:49]} h6 {[%emt 0:01:31]} 7. Bh4 {[%emt 0:00:48]} Be6 {[%emt 0:00:
00]} 8. Bb3 {[%emt 0:00:34]} a6 {[%emt 0:04:37]} 9. Nd5 {[%emt 0:03:46]} Bxd5 {
[%emt 0:00:25]} 10. Bxd5 {[%emt 0:00:10]} g5 {[%emt 0:03:13]} 11. Bxc6+ {
[%emt 0:00:53]} bxc6 {[%emt 0:00:05]} 12. Bg3 {[%emt 0:00:25]} Rb8 {[%emt 0:00:
00]} 13. Rb1 {[%emt 0:01:01]} h5 {[%emt 0:02:19]} 14. h4 {[%emt 0:01:04]} g4 {
[%emt 0:00:06]} 15. Nd2 {[%emt 0:00:43]} Qe7 {[%emt 0:03:24]} 16. Rf1 {[%emt 0:
00:00]} Qe6 {[%emt 0:03:52]} 17. Nb3 {[%emt 0:01:10]} Bb6 {[%emt 0:00:06]} 18.
Qe2 {[%emt 0:02:13]} Rg8 {[%emt 0:02:57]} 19. f3 {[%emt 0:04:26]} gxf3 {
[%emt 0:02:30]} 20. Qxf3 {[%emt 0:00:32]} Ng4 {[%emt 0:03:17]} 21. c3 {[%emt 0:
00:00]} Ne3 {[%emt 0:04:50]} 22. Rf2 {[%emt 0:01:57]} Qg6 {[%emt 0:00:13]} 23.
d4 {[%emt 0:19:08]} Qxg3 {[%emt 0:02:09]} 24. Qxf7+ {[%emt 0:00:31]} Kd8 {
[%emt 0:00:01]} 25. Qf6+ {[%emt 0:00:52]} Kc8 {[%emt 0:00:01]} 26. Ke2 {
[%emt 0:09:00]} Ng4 {[%emt 0:00:55]} 27. Qf5+ {[%emt 0:02:29]} Kb7 {[%emt 0:00:
00]} 28. Rf3 {[%emt 0:02:03]} Qxg2+ {[%emt 0:02:42]} 29. Kd3 {[%emt 0:00:56]}
c5 {[%emt 0:16:19]} 30. Nd2 {[%emt 0:10:53]} cxd4 {[%emt 0:02:17]} 31. Nc4 {
[%emt 0:00:44]} Ne3 {[%emt 0:00:39]} 32. Nxe3 {[%emt 0:01:41]} dxe3 {[%emt 0:
00:00]} 33. a4 {[%emt 0:04:36]} Qd2+ {[%emt 0:00:30]} 34. Kc4 {[%emt 0:00:29]}
e2 {[%emt 0:02:09]} 35. Rd3 {[%emt 0:03:07]} e1=Q {[%emt 0:00:09]} 36. Rxe1 {
[%emt 0:00:36]} Qxe1 {[%emt 0:00:06]} 37. Qxh5 {[%emt 0:04:11]} Qxe4+ {[%emt 0:
00:00]} 38. Rd4 {[%emt 0:05:30]} exd4 {[%emt 0:00:16]} 0-1

[Event "44th Chess Olympiad Women 2022"]
[Site "Chennai"]
[Date "2022.07.31"]
[Round "3.44"]
[White "Diaz Charpentier, Kristel Meliss"]
[Black "Paul, Theophane"]
[Result "1-0"]
[WhiteElo "1989"]
[BlackElo "1493"]
[Annotator "NA RC"]
[PlyCount "75"]
[EventDate "2022.??.??"]
[TimeControl "60"]

1. Nf3 {[%emt 0:00:18]} c5 {[%emt 0:00:25]} 2. c4 {[%emt 0:00:04]} e6 {[%emt 0:
00:00]} 3. d4 {[%emt 0:00:15]} Nf6 {[%emt 0:01:56]} 4. Nc3 {[%emt 0:00:58]} d5
{[%emt 0:02:10]} 5. cxd5 {[%emt 0:05:29]} exd5 {[%emt 0:01:04]} 6. Bg5 {
[%emt 0:01:11]} Be7 {[%emt 0:07:38]} 7. dxc5 {[%emt 0:03:26]} Be6 {[%emt 0:00:
00]} 8. Rc1 {[%emt 0:03:30]} Nbd7 {[%emt 0:05:24]} 9. e3 {[%emt 0:06:38]} Bxc5
{[%emt 0:02:23]} 10. Bb5 {[%emt 0:01:48]} Be7 {[%emt 0:02:49]} 11. O-O {
[%emt 0:04:22]} O-O {[%emt 0:01:06]} 12. h3 {[%emt 0:02:15]} Rc8 {[%emt 0:00:
00]} 13. Qe2 {[%emt 0:02:11]} Nc5 {[%emt 0:05:04]} 14. Rfd1 {[%emt 0:03:06]}
Nce4 {[%emt 0:04:41]} 15. Bxf6 {[%emt 0:03:34]} Nxf6 {[%emt 0:00:35]} 16. Nd4 {
[%emt 0:05:40]} Qd6 {[%emt 0:03:48]} 17. e4 {[%emt 0:06:56]} Qe5 {[%emt 0:00:
00]} 18. Nxe6 {[%emt 0:03:50]} fxe6 {[%emt 0:03:47]} 19. exd5 {[%emt 0:03:21]}
Qxe2 {[%emt 0:00:22]} 20. Bxe2 {[%emt 0:00:04]} exd5 {[%emt 0:02:00]} 21. Nxd5
{[%emt 0:01:47]} Nxd5 {[%emt 0:02:12]} 22. Rxc8 {[%emt 0:00:25]} Rxc8 {[%emt 0:
00:00]} 23. Rxd5 {[%emt 0:00:04]} Rc2 {[%emt 0:02:16]} 24. Kf1 {[%emt 0:10:11]}
Rxb2 {[%emt 0:04:01]} 25. Bc4 {[%emt 0:00:36]} g6 {[%emt 0:11:16]} 26. Rd2+ {
[%emt 0:00:07]} Kg7 {[%emt 0:01:38]} 27. Rxb2 {[%emt 0:00:05]} b6 {[%emt 0:00:
00]} 28. Rd2 {[%emt 0:00:14]} Kf6 {[%emt 0:00:57]} 29. Rd7 {[%emt 0:00:07]} a5
{[%emt 0:00:47]} 30. g4 {[%emt 0:00:14]} h6 {[%emt 0:01:13]} 31. f4 {[%emt 0:
00:00]} g5 {[%emt 0:02:34]} 32. h4 {[%emt 0:00:09]} b5 {[%emt 0:02:13]} 33.
hxg5+ {[%emt 0:00:06]} hxg5 {[%emt 0:00:33]} 34. fxg5+ {[%emt 0:00:04]} Kg6 {
[%emt 0:00:46]} 35. Rxe7 {[%emt 0:00:08]} bxc4 {[%emt 0:00:24]} 36. Rc7 {
[%emt 0:00:04]} c3 {[%emt 0:01:11]} 37. Rxc3 {[%emt 0:00:02]} Kxg5 {[%emt 0:00:
00]} 38. Rc5+ {[%emt 0:00:04]} 1-0